fUST/lending_fUST_20241203
["ID","MTS","AMOUNT","RATE_DAILY","PERIOD"]
[344020361,1733209837213,-197.702058,0.00023856,7]
[344020362,1733209837223,-197.702058,0.00023856,7]
[344020363,1733209837238,-209.261442,0.00023939,7]
[344020364,1733209837251,-209.261442,0.00023939,7]
[344020365,1733209837260,-166.190436,0.0002397,7]
[344020366,1733209837271,-166.190436,0.0002397,7]
[344020367,1733209837284,-1152.0,0.00024336,2]
[344020368,1733209837294,-2281.15310196,0.000244,2]
[344020369,1733209837304,-151.0,0.00024445,7]
[344020370,1733209837315,-164.921123,0.00024445,7]
[344020371,1733209837334,-151.0,0.00024445,7]
[344020372,1733209837345,-151.0,0.00024658,7]
[344020373,1733209837355,-151.0,0.00024658,7]
[344020374,1733209837366,-155.484481,0.00024658,7]
[344020375,1733209837376,-444.967813,0.00024658,7]
[344020376,1733209837387,-444.967813,0.00024658,7]
[344020377,1733209837397,-641.792493,0.00024658,7]
[344020378,1733209837408,-641.792493,0.00024658,7]
[344020379,1733209837418,-2897.35120429,0.00024714,2]
[344020380,1733209837428,-151.0,0.00024724,7]
[344020381,1733209837438,-263.712444,0.00024724,7]
[344020382,1733209837448,-263.712444,0.00024724,7]
[344020383,1733209837458,-197.451015,0.00024724,7]
[344020384,1733209837468,-197.451015,0.00024724,7]
[344020385,1733209837482,-775.61802,0.00024724,7]
[344020386,1733209837492,-775.61802,0.00024724,7]
[344020387,1733209837503,-159.655214,0.00024724,2]
[344020388,1733209837513,-1174.3551849,0.0002482,2]
[344020389,1733209837524,-161.24703631,0.0002482,2]
[344020390,1733209837534,-13888.62940393,0.0002486,2]
[344020391,1733209837545,-940.07631103,0.000249,7]
[344020392,1733209837555,-2475.0221091,0.000249,2]
[344020393,1733209837565,-500.0,0.00024973,2]
[344020394,1733209837575,-500.0,0.00024973,2]
[344020395,1733209837586,-173.658,0.00024998,8]
[344020396,1733209837595,-3019.75637444,0.00025,7]
[344020397,1733209837605,-4503.20039653,0.00025,2]
[344020398,1733209837615,-2949.93352581,0.00025,2]
[344020399,1733209837625,-166.190436,0.00025,7]
[344020400,1733209837635,-166.190436,0.00025,7]
[344020401,1733209837645,-151.0,0.00025,7]
[344020402,1733209837655,-298.933905,0.00025,7]
[344020403,1733209837665,-151.0,0.00025,7]
[344020404,1733209837676,-151.0,0.00025,7]
[344020405,1733209837685,-1719.182567,0.00025,2]
[344020406,1733209837695,-850000.0,0.00025,2]
[344020407,1733209837705,-151.0,0.00025,7]
[344020408,1733209837715,-197.702058,0.00025,7]
[344020409,1733209837724,-197.702058,0.00025,7]
[344020410,1733209837736,-263.712444,0.00025,7]
[344020411,1733209837747,-263.712444,0.00025,7]
[344020412,1733209837757,-263.712444,0.00025,7]
[344020413,1733209837767,-263.712444,0.00025,7]
[344020414,1733209837777,-209.261442,0.00025,7]
[344020415,1733209837787,-209.261442,0.00025,7]
[344020416,1733209837797,-209.261442,0.00025,7]
[344020417,1733209837806,-209.261442,0.00025,7]
[344020418,1733209837816,-197.451015,0.00025,7]
[344020419,1733209837883,-197.451015,0.00025,7]
[344020420,1733209837893,-197.451015,0.00025,7]
[344020421,1733209837903,-197.451015,0.00025,7]
[344020422,1733209837915,-151.0,0.00025,7]
[344020423,1733209837924,-173.68342,0.00025,7]
[344020424,1733209837934,-775.61802,0.00025,7]
[344020425,1733209837944,-775.61802,0.00025,7]
[344020426,1733209837954,-775.61802,0.00025,7]
[344020427,1733209837965,-775.61802,0.00025,7]
[344020428,1733209837975,-151.0,0.00025,7]
[344020429,1733209837990,-222.241637,0.00025,7]
[344020430,1733209838001,-222.659587,0.00025,7]
[344020431,1733209838013,-222.659587,0.00025,7]
[344020432,1733209838023,-222.659587,0.00025,7]
[344020433,1733209838033,-222.659587,0.00025,7]
[344020435,1733209838042,-444.967813,0.00025,7]
[344020436,1733209838051,-444.967813,0.00025,7]
[344020438,1733209838061,-444.967813,0.00025,7]
[344020440,1733209838071,-444.967813,0.00025,7]
[344020443,1733209838081,-641.792493,0.00025,7]
[344020445,1733209838090,-641.792493,0.00025,7]
[344020446,1733209838100,-641.792493,0.00025,7]
[344020447,1733209838109,-641.792493,0.00025,7]
[344020448,1733209838119,-500.0,0.00025,17]
[344020449,1733209838128,-17789.0,0.00025,2]
[344020450,1733209838138,-150.0,0.0002501,2]
[344020451,1733209838148,-150.714,0.0002501,2]
[344020452,1733209838157,-532.0,0.0002501,2]
[344020453,1733209838168,-2173.0,0.0002501,2]
[344020454,1733209838178,-2377.0,0.0002501,2]
[344020455,1733209838187,-429.642079,0.00025102,2]
[344020457,1733209838197,-2475.02210901,0.00025519,2]
[344020459,1733209838207,-1001.56826379,0.00025521,2]
[344020461,1733209838217,-1000.0,0.00025521,2]
[344020462,1733209838228,-2281.15310196,0.0002565,2]
[344020464,1733209838245,-151.0,0.0002572,4]
[344020466,1733209838255,-1613.0,0.00025886,2]
[344020468,1733209838265,-159.655214,0.00025886,2]
[344020469,1733209838274,-500.000001,0.00026,20]
[344020470,1733209838285,-155.31235182,0.00026061,2]
[344020471,1733209838295,-2475.02210901,0.00026138,2]
[344020473,1733209838304,-151.0,0.00026207,5]
[344020475,1733209838315,-660.0,0.00026384,2]
[344020477,1733209838325,-222.659587,0.00026522,7]
[344020479,1733209838335,-222.659587,0.00026522,7]
[344020480,1733209838343,-260.4708853,0.00026522,2]
[344020481,1733209838353,-2897.35120429,0.00026633,2]
[344020482,1733209838363,-10000.0,0.00026638,2]
[344020483,1733209838373,-151.0,0.00026638,7]
[344020484,1733209838383,-263.712444,0.00026638,7]
[344020485,1733209838393,-263.71244,0.00026638,7]
[344020486,1733209838403,-209.261442,0.00026638,7]
[344020487,1733209838413,-209.261452,0.00026638,7]
[344020488,1733209838423,-197.451015,0.00026638,7]
[344020489,1733209838433,-197.451009,0.00026638,7]
[344020490,1733209838443,-775.61802,0.00026638,7]
[344020491,1733209838454,-775.618012,0.00026638,7]
[344020492,1733209838464,-444.967813,0.00026638,7]
[344020493,1733209838474,-444.967813,0.00026638,7]
[344020494,1733209838489,-641.792493,0.00026638,7]
[344020495,1733209838504,-641.792493,0.00026638,7]
[344020496,1733209838514,-151.0,0.00026693,5]
[344020497,1733209838525,-151.0,0.000267,10]
[344020498,1733209838535,-152.26,0.00026701,2]
[344020499,1733209838544,-2475.02210901,0.00026758,2]
[344020500,1733209838554,-1515.0,0.00026769,2]
[344020501,1733209838564,-2281.15310196,0.000269,2]
[344020502,1733209838574,-175.6749,0.00026921,2]
[344020503,1733209838583,-4461.6662,0.00026932,30]
[344020504,1733209838594,-3180.5347,0.00027,10]
[344020505,1733209838604,-31641.4144046,0.00027,120]
[344020506,1733209838614,-166.190436,0.00027,7]
[344020507,1733209838624,-166.190436,0.00027,7]
[344020508,1733209838634,-151.0,0.00027,7]
[344020510,1733209838643,-151.0,0.00027,7]
[344020512,1733209838653,-197.702058,0.00027,7]
[344020514,1733209838663,-197.702058,0.00027,7]
[344020515,1733209838673,-314.0,0.00027,2]
[344020516,1733209838683,-161.0,0.00027,2]
[344020517,1733209838692,-159.655214,0.00027049,2]
[344020518,1733209838702,-151.0,0.0002718,5]
[344020519,1733209838714,-155.01561759,0.00027364,2]
[344020520,1733209838725,-556.96293504,0.00027373,2]
[344020521,1733209838740,-500.0,0.00027373,2]
[344020522,1733209838750,-500.96347609,0.00027373,2]
[344020523,1733209838760,-2475.02210901,0.00027377,2]
[344020524,1733209838771,-1169.27083333,0.00027397,7]
[344020525,1733209838781,-1169.27083333,0.00027397,7]
[344020526,1733209838791,-166.190436,0.00027397,7]
[344020527,1733209838801,-166.190442,0.00027397,7]
[344020528,1733209838811,-151.0,0.00027397,7]
[344020529,1733209838821,-151.0,0.00027397,7]
[344020530,1733209838831,-213.880915,0.00027397,7]
[344020531,1733209838840,-19226.89641298,0.00027397,10]
[344020532,1733209838849,-151.0,0.00027397,7]
[344020533,1733209838858,-151.0,0.00027397,7]
[344020534,1733209838867,-500.0,0.00027397,7]
[344020535,1733209838877,-500.0,0.00027397,7]
[344020536,1733209838887,-505.93509157,0.00027397,7]
[344020537,1733209838896,-500.0,0.00027397,7]
[344020538,1733209838906,-500.0,0.00027397,7]
[344020539,1733209838915,-225.90719191,0.00027397,7]
[344020540,1733209838925,-500.0,0.00027397,7]
[344020541,1733209838934,-500.0,0.00027397,7]
[344020542,1733209838944,-500.0,0.00027397,7]
[344020543,1733209838953,-500.0,0.00027397,7]
[344020544,1733209838962,-503.33807866,0.00027397,7]
[344020545,1733209838971,-518.72237497,0.00027397,7]
[344020546,1733209838984,-502.68063117,0.00027397,7]
[344020547,1733209838993,-212.22884751,0.00027397,7]
[344020548,1733209839002,-500.0,0.00027397,7]
[344020549,1733209839012,-501.74726768,0.00027397,7]
[344020550,1733209839021,-500.0,0.00027397,7]
[344020551,1733209839031,-509.69505812,0.00027397,7]
[344020552,1733209839040,-503.42436298,0.00027397,7]
[344020553,1733209839050,-503.15386812,0.00027397,7]
[344020554,1733209839059,-503.2904131,0.00027397,7]
[344020555,1733209839068,-505.9726946,0.00027397,7]
[344020556,1733209839078,-500.0,0.00027397,7]
[344020557,1733209839087,-500.0,0.00027397,7]
[344020558,1733209839148,-503.17525394,0.00027397,7]
[344020559,1733209839163,-501.45596376,0.00027397,7]
[344020560,1733209839172,-500.0,0.00027397,7]
[344020561,1733209839182,-534.07515254,0.00027397,7]
[344020562,1733209839191,-500.0,0.00027397,7]
[344020563,1733209839200,-503.45756845,0.00027397,7]
[344020564,1733209839209,-500.0,0.00027397,7]
[344020565,1733209839219,-500.0,0.00027397,7]
[344020566,1733209839231,-502.51436,0.00027397,7]
[344020567,1733209839244,-500.0,0.00027397,7]
[344020568,1733209839254,-500.0,0.00027397,7]
[344020569,1733209839263,-500.0,0.00027397,7]
[344020570,1733209839273,-505.05876525,0.00027397,7]
[344020571,1733209839283,-414.46754536,0.00027397,2]
[344020572,1733209839293,-588.7020058,0.00027397,7]
[344020573,1733209839303,-162.67146334,0.00027397,7]
[344020574,1733209839313,-500.0,0.00027397,7]
[344020575,1733209839325,-500.0,0.00027397,7]
[344020576,1733209839334,-500.0,0.00027397,7]
[344020577,1733209839344,-500.0,0.00027397,7]
[344020578,1733209839353,-500.0,0.00027397,7]
[344020579,1733209839362,-500.0,0.00027397,7]
[344020580,1733209839372,-185.76308,0.00027397,7]
[344020581,1733209839381,-500.0,0.00027397,7]
[344020582,1733209839391,-500.0,0.00027397,7]
[344020583,1733209839401,-500.0,0.00027397,7]
[344020584,1733209839410,-552.87842683,0.00027397,7]
[344020585,1733209839420,-519.25532933,0.00027397,7]
[344020586,1733209839429,-500.0,0.00027397,7]
[344020587,1733209839439,-500.0,0.00027397,7]
[344020588,1733209839450,-240.32287367,0.00027397,7]
[344020589,1733209839459,-503.1414004,0.00027397,7]
[344020590,1733209839469,-519.73852246,0.00027397,7]
[344020591,1733209839481,-500.0,0.00027397,7]
[344020592,1733209839491,-311.16110011,0.00027397,7]
[344020593,1733209839501,-502.4140288,0.00027397,7]
[344020594,1733209839511,-500.0,0.00027397,7]
[344020595,1733209839521,-500.0,0.00027397,7]
[344020596,1733209839531,-500.0,0.00027397,7]
[344020597,1733209839542,-500.0,0.00027397,7]
[344020598,1733209839552,-500.0,0.00027397,7]
[344020599,1733209839562,-500.0,0.00027397,7]
[344020600,1733209839571,-501.51671636,0.00027397,7]
[344020601,1733209839581,-500.0,0.00027397,7]
[344020602,1733209839590,-500.0,0.00027397,7]
[344020603,1733209839601,-500.0,0.00027397,7]
[344020604,1733209839611,-500.0,0.00027397,7]
[344020605,1733209839621,-500.0,0.00027397,7]
[344020606,1733209839631,-500.0,0.00027397,7]
[344020607,1733209839641,-500.0,0.00027397,7]
[344020608,1733209839656,-500.0,0.00027397,7]
[344020609,1733209839666,-309.64599225,0.00027397,7]
[344020610,1733209839676,-500.0,0.00027397,7]
[344020611,1733209839686,-500.0,0.00027397,7]
[344020612,1733209839696,-197.702058,0.00027397,7]
[344020613,1733209839706,-500.0,0.00027397,7]
[344020614,1733209839716,-197.702061,0.00027397,7]
[344020615,1733209839726,-515.94844468,0.00027397,7]
[344020616,1733209839743,-500.0,0.00027397,7]
[344020617,1733209839752,-500.0,0.00027397,7]
[344020618,1733209839763,-502.83967973,0.00027397,7]
[344020619,1733209839773,-500.0,0.00027397,7]
[344020620,1733209839785,-500.0,0.00027397,7]
[344020621,1733209839795,-507.0873061,0.00027397,7]
[344020622,1733209839805,-640.80643025,0.00027397,7]
[344020623,1733209839815,-500.0,0.00027397,7]
[344020624,1733209839824,-517.25844105,0.00027397,7]
[344020625,1733209839834,-500.0,0.00027397,7]
[344020626,1733209839844,-501.56761337,0.00027397,7]
[344020627,1733209839853,-500.0,0.00027397,7]
[344020628,1733209839862,-500.0,0.00027397,7]
[344020629,1733209839872,-500.0,0.00027397,7]
[344020631,1733209839881,-501.15799876,0.00027397,7]
[344020633,1733209839891,-500.0,0.00027397,7]
[344020635,1733209839900,-500.0,0.00027397,7]
[344020637,1733209839911,-500.0,0.00027397,2]
[344020638,1733209839920,-500.0,0.00027397,7]
[344020639,1733209839931,-503.99411552,0.00027397,7]
[344020640,1733209839940,-500.0,0.00027397,7]
[344020641,1733209839950,-500.0,0.00027397,7]
[344020642,1733209839960,-500.0,0.00027397,7]
[344020643,1733209839970,-500.0,0.00027397,7]
[344020644,1733209839984,-509.30800496,0.00027397,7]
[344020645,1733209839994,-500.0,0.00027397,7]
[344020646,1733209840003,-500.0,0.00027397,7]
[344020647,1733209840013,-500.0,0.00027397,7]
[344020649,1733209840023,-500.0,0.00027397,7]
[344020651,1733209840034,-500.0,0.00027397,7]
[344020652,1733209840043,-502.1486162,0.00027397,7]
[344020653,1733209840053,-515.51236817,0.00027397,7]
[344020654,1733209840063,-499.38237768,0.00027397,7]
[344020655,1733209840073,-500.0,0.00027397,7]
[344020656,1733209840083,-500.0,0.00027397,7]
[344020657,1733209840092,-500.0,0.00027397,7]
[344020658,1733209840102,-371.46304803,0.00027397,7]
[344020659,1733209840112,-500.0,0.00027397,7]
[344020660,1733209840122,-500.0,0.00027397,7]
[344020661,1733209840131,-500.0,0.00027397,7]
[344020662,1733209840141,-245.16895133,0.00027397,7]
[344020663,1733209840151,-500.0,0.00027397,7]
[344020664,1733209840161,-489.53692228,0.00027397,7]
[344020665,1733209840171,-500.0,0.00027397,7]
[344020666,1733209840180,-500.0,0.00027397,7]
[344020667,1733209840189,-500.0,0.00027397,7]
[344020668,1733209840199,-500.0,0.00027397,7]
[344020670,1733209840209,-534.81967911,0.00027397,7]
[344020671,1733209840219,-500.0,0.00027397,7]
[344020673,1733209840228,-500.0,0.00027397,7]
[344020674,1733209840245,-500.0,0.00027397,7]
[344020675,1733209840255,-500.0,0.00027397,7]
[344020676,1733209840323,-500.0,0.00027397,7]
[344020677,1733209840333,-500.0,0.00027397,7]
[344020678,1733209840342,-500.0,0.00027397,7]
[344020679,1733209840352,-511.24698668,0.00027397,7]
[344020680,1733209840361,-500.0,0.00027397,7]
[344020682,1733209840371,-502.66907525,0.00027397,7]
[344020684,1733209840380,-500.0,0.00027397,7]
[344020686,1733209840390,-500.0,0.00027397,7]
[344020688,1733209840399,-500.0,0.00027397,7]
[344020689,1733209840410,-413.10226633,0.00027397,7]
[344020690,1733209840420,-500.0,0.00027397,7]
[344020691,1733209840430,-500.0,0.00027397,7]
[344020692,1733209840439,-500.0,0.00027397,7]
[344020693,1733209840449,-308.55,0.00027397,7]
[344020694,1733209840458,-500.0,0.00027397,7]
[344020695,1733209840469,-500.0,0.00027397,7]
[344020696,1733209840480,-500.0,0.00027397,7]
[344020697,1733209840490,-500.0,0.00027397,7]
[344020698,1733209840500,-500.0,0.00027397,7]
[344020699,1733209840510,-500.0,0.00027397,7]
[344020700,1733209840520,-506.41696171,0.00027397,7]
[344020701,1733209840529,-500.0,0.00027397,7]
[344020702,1733209840539,-505.29156985,0.00027397,7]
[344020703,1733209840549,-500.0,0.00027397,7]
[344020704,1733209840559,-400.06688696,0.00027397,7]
[344020705,1733209840569,-500.0,0.00027397,7]
[344020706,1733209840579,-502.29942104,0.00027397,7]
[344020707,1733209840588,-501.87181079,0.00027397,7]
[344020708,1733209840598,-500.0,0.00027397,7]
[344020709,1733209840607,-503.4992487,0.00027397,7]
[344020710,1733209840617,-500.0,0.00027397,7]
[344020711,1733209840627,-502.09061141,0.00027397,7]
[344020712,1733209840637,-502.64683847,0.00027397,7]
[344020713,1733209840647,-500.0,0.00027397,7]
[344020714,1733209840656,-500.0,0.00027397,7]
[344020715,1733209840666,-563.28,0.00027397,7]
[344020716,1733209840676,-563.28,0.00027397,7]
[344020717,1733209840686,-563.28,0.00027397,7]
[344020718,1733209840695,-563.28,0.00027397,7]
[344020719,1733209840705,-334.58471995,0.00027397,7]
[344020720,1733209840715,-563.28,0.00027397,7]
[344020721,1733209840725,-563.28,0.00027397,7]
[344020722,1733209840740,-563.28,0.00027397,7]
[344020723,1733209840750,-563.28,0.00027397,7]
[344020724,1733209840759,-563.28,0.00027397,7]
[344020725,1733209840769,-563.28,0.00027397,7]
[344020726,1733209840779,-563.28,0.00027397,7]
[344020727,1733209840789,-563.28,0.00027397,7]
[344020728,1733209840799,-500.0,0.00027397,7]
[344020729,1733209840808,-563.28,0.00027397,7]
[344020730,1733209840818,-500.0,0.00027397,7]
[344020731,1733209840827,-563.28,0.00027397,7]
[344020732,1733209840836,-563.28,0.00027397,7]
[344020733,1733209840853,-563.28,0.00027397,7]
[344020734,1733209840870,-563.28,0.00027397,7]
[344020735,1733209840884,-563.28,0.00027397,7]
[344020736,1733209840899,-563.28,0.00027397,7]
[344020737,1733209840916,-563.28,0.00027397,7]
[344020738,1733209840933,-563.28,0.00027397,7]
[344020739,1733209840949,-563.28,0.00027397,7]
[344020740,1733209840965,-417.90322795,0.00027397,7]
[344020741,1733209840985,-563.28,0.00027397,7]
[344020742,1733209840999,-563.45963667,0.00027397,7]
[344020743,1733209841013,-500.0,0.00027397,7]
[344020744,1733209841028,-500.0,0.00027397,7]
[344020745,1733209841043,-500.0,0.00027397,7]
[344020746,1733209841061,-500.0,0.00027397,7]
[344020747,1733209841079,-507.81729587,0.00027397,7]
[344020748,1733209841091,-500.0,0.00027397,7]
[344020749,1733209841105,-538.22252044,0.00027397,7]
[344020750,1733209841122,-500.0,0.00027397,7]
[344020751,1733209841136,-500.0,0.00027397,7]
[344020752,1733209841151,-500.0,0.00027397,7]
[344020753,1733209841163,-500.0,0.00027397,7]
[344020754,1733209841177,-500.0,0.00027397,7]
[344020755,1733209841190,-500.0,0.00027397,7]
[344020756,1733209841205,-500.0,0.00027397,7]
[344020757,1733209841219,-500.0,0.00027397,7]
[344020758,1733209841237,-501.61998695,0.00027397,7]
[344020759,1733209841255,-500.0,0.00027397,7]
[344020760,1733209841268,-500.0,0.00027397,7]
[344020761,1733209841280,-500.0,0.00027397,7]
[344020762,1733209841293,-500.0,0.00027397,7]
[344020763,1733209841306,-500.0,0.00027397,7]
[344020764,1733209841319,-500.0,0.00027397,7]
[344020765,1733209841332,-500.0,0.00027397,7]
[344020766,1733209841345,-576.32734188,0.00027397,7]
[344020767,1733209841359,-576.65753429,0.00027397,7]
[344020768,1733209841373,-500.0,0.00027397,7]
[344020769,1733209841386,-500.0,0.00027397,7]
[344020770,1733209841399,-513.48592941,0.00027397,7]
[344020771,1733209841413,-503.97585722,0.00027397,7]
[344020772,1733209841427,-500.0,0.00027397,7]
[344020773,1733209841441,-504.25171146,0.00027397,2]
[344020774,1733209841455,-500.0,0.00027397,7]
[344020775,1733209841469,-503.06668727,0.00027397,7]
[344020776,1733209841488,-500.0,0.00027397,7]
[344020777,1733209841503,-500.0,0.00027397,7]
[344020778,1733209841517,-500.0,0.00027397,7]
[344020779,1733209841528,-500.0,0.00027397,7]
[344020780,1733209841538,-540.21113922,0.00027397,7]
[344020781,1733209841548,-509.52157176,0.00027397,7]
[344020782,1733209841667,-500.0,0.00027397,7]
[344020783,1733209841678,-640.61,0.00027397,7]
[344020784,1733209841688,-508.92905791,0.00027397,7]
[344020785,1733209841697,-500.0,0.00027397,7]
[344020786,1733209841707,-500.0,0.00027397,7]
[344020787,1733209841716,-500.0,0.00027397,7]
[344020788,1733209841726,-502.30296926,0.00027397,7]
[344020789,1733209841739,-502.56243705,0.00027397,7]
[344020790,1733209841748,-500.0,0.00027397,7]
[344020791,1733209841758,-500.0,0.00027397,7]
[344020792,1733209841767,-500.0,0.00027397,7]
[344020793,1733209841777,-445.83933677,0.00027397,7]
[344020794,1733209841786,-508.54758043,0.00027397,7]
[344020795,1733209841796,-500.0,0.00027397,7]
[344020796,1733209841805,-500.0,0.00027397,7]
[344020797,1733209841815,-500.0,0.00027397,7]
[344020798,1733209841824,-500.0,0.00027397,7]
[344020799,1733209841834,-500.0,0.00027397,7]
[344020800,1733209841844,-500.0,0.00027397,7]
[344020801,1733209841853,-500.0,0.00027397,7]
[344020802,1733209841863,-500.0,0.00027397,7]
[344020803,1733209841873,-512.41667067,0.00027397,7]
[344020804,1733209841882,-500.0,0.00027397,7]
[344020805,1733209841892,-500.0,0.00027397,7]
[344020806,1733209841902,-500.0,0.00027397,7]
[344020807,1733209841912,-500.0,0.00027397,7]
[344020808,1733209841922,-500.0,0.00027397,7]
[344020809,1733209841932,-500.0,0.00027397,7]
[344020810,1733209841941,-500.0,0.00027397,7]
[344020811,1733209841951,-500.0,0.00027397,7]
[344020812,1733209841960,-500.0,0.00027397,7]
[344020813,1733209841971,-398.31843365,0.00027397,7]
[344020814,1733209841986,-500.0,0.00027397,7]
[344020815,1733209841997,-500.0,0.00027397,7]
[344020816,1733209842007,-500.0,0.00027397,7]
[344020817,1733209842017,-500.0,0.00027397,7]
[344020818,1733209842027,-500.0,0.00027397,7]
[344020819,1733209842036,-500.0,0.00027397,7]
[344020820,1733209842045,-500.0,0.00027397,7]
[344020821,1733209842055,-506.85265362,0.00027397,7]
[344020822,1733209842065,-500.0,0.00027397,7]
[344020823,1733209842074,-870.0226772,0.00027397,5]
[344020824,1733209842083,-500.0,0.00027397,7]
[344020825,1733209842093,-502.75657161,0.00027397,7]
[344020826,1733209842102,-500.0,0.00027397,7]
[344020827,1733209842112,-500.0,0.00027397,7]
[344020828,1733209842121,-501.13999047,0.00027397,7]
[344020829,1733209842130,-500.0,0.00027397,7]
[344020830,1733209842139,-625.07234563,0.00027397,7]
[344020831,1733209842149,-500.0,0.00027397,7]
[344020832,1733209842158,-500.0,0.00027397,7]
[344020833,1733209842168,-500.0,0.00027397,7]
[344020834,1733209842178,-500.0,0.00027397,7]
[344020835,1733209842189,-500.0,0.00027397,7]
[344020836,1733209842198,-500.0,0.00027397,7]
[344020837,1733209842208,-500.0,0.00027397,7]
[344020838,1733209842217,-500.0,0.00027397,7]
[344020839,1733209842227,-510.4328252,0.00027397,7]
[344020840,1733209842245,-500.0,0.00027397,7]
[344020841,1733209842255,-506.52577254,0.00027397,7]
[344020842,1733209842265,-500.0,0.00027397,7]
[344020843,1733209842275,-500.0,0.00027397,7]
[344020844,1733209842286,-500.0,0.00027397,7]
[344020845,1733209842296,-500.0,0.00027397,7]
[344020846,1733209842305,-500.0,0.00027397,5]
[344020847,1733209842315,-500.0,0.00027397,7]
[344020848,1733209842325,-504.5808403,0.00027397,7]
[344020849,1733209842335,-412.31108132,0.00027397,7]
[344020850,1733209842345,-537.51320697,0.00027397,7]
[344020851,1733209842355,-414.13852082,0.00027397,7]
[344020852,1733209842365,-574.1119942,0.00027397,7]
[344020853,1733209842374,-272.92280239,0.00027397,7]
[344020854,1733209842384,-500.0,0.00027397,7]
[344020855,1733209842394,-509.56680586,0.00027397,7]
[344020856,1733209842404,-500.0,0.00027397,7]
[344020857,1733209842414,-500.0,0.00027397,7]
[344020858,1733209842424,-500.0,0.00027397,7]
[344020859,1733209842435,-502.62683356,0.00027397,7]
[344020860,1733209842445,-506.8956542,0.00027397,7]
[344020861,1733209842455,-211.63212687,0.00027397,7]
[344020862,1733209842465,-500.0,0.00027397,7]
[344020863,1733209842474,-598.14,0.00027397,7]
[344020864,1733209842490,-554.49230796,0.00027397,7]
[344020865,1733209842500,-500.0,0.00027397,7]
[344020866,1733209842510,-500.0,0.00027397,7]
[344020867,1733209842520,-503.17925164,0.00027397,7]
[344020868,1733209842531,-500.0,0.00027397,7]
[344020869,1733209842540,-500.0,0.00027397,7]
[344020870,1733209842550,-500.0,0.00027397,7]
[344020871,1733209842560,-500.0,0.00027397,7]
[344020872,1733209842569,-500.65327194,0.00027397,7]
[344020873,1733209842579,-582.00479756,0.00027397,7]
[344020874,1733209842589,-424.95553887,0.00027397,7]
[344020875,1733209842599,-731.11,0.00027397,7]
[344020876,1733209842609,-500.64807513,0.00027397,7]
[344020877,1733209842619,-513.51452667,0.00027397,7]
[344020878,1733209842629,-175.41,0.00027397,7]
[344020879,1733209842639,-500.0,0.00027397,7]
[344020880,1733209842649,-500.0,0.00027397,7]
[344020881,1733209842658,-500.0,0.00027397,7]
[344020882,1733209842668,-503.41754856,0.00027397,7]
[344020883,1733209842677,-600.38616269,0.00027397,7]
[344020884,1733209842687,-500.0,0.00027397,7]
[344020885,1733209842697,-500.0,0.00027397,7]
[344020886,1733209842706,-500.0,0.00027397,7]
[344020887,1733209842716,-513.34729671,0.00027397,7]
[344020888,1733209842726,-500.0,0.00027397,7]
[344020889,1733209842740,-502.87024064,0.00027397,7]
[344020890,1733209842751,-500.0,0.00027397,7]
[344020891,1733209842761,-500.0,0.00027397,7]